bitfinex/quotes_BTCUSD_20240927
["timestamp","ask_amount","ask_price","bid_price","bid_amount"]
[1727447555870,0.52796208,66365.0,66351.0,0.002]
[1727447555871,0.023,66357.0,66351.0,0.002]
[1727447556089,0.023,66357.0,66347.0,0.22659808]
[1727447556311,0.023,66354.0,66351.0,0.001]
[1727447556665,0.173711,66352.0,66351.0,0.001]
[1727447556939,0.32899894,66352.0,66351.0,0.001]
[1727447557172,0.023,66347.0,66345.0,0.22659808]
[1727447557408,0.173723,66347.0,66338.0,0.22659808]
[1727447557650,0.023,66345.0,66338.0,0.22659808]
[1727447558124,0.173725,66346.0,66337.0,0.150744]
[1727447558363,0.023,66344.0,66333.0,0.301507]
[1727447558603,0.023,66344.0,66337.0,0.22659808]
[1727447558840,0.15528794,66346.0,66337.0,0.22659808]
[1727447558841,0.023,66345.0,66337.0,0.30149]
[1727447559077,0.023,66345.0,66336.0,0.301495]
[1727447559349,0.023,66345.0,66339.0,0.22659808]
[1727447559604,0.014,66352.0,66339.0,0.22659808]
[1727447559831,0.0764,66364.0,66337.0,0.15528794]
[1727447559832,0.22659808,66350.0,66346.0,0.150723]
[1727447560083,0.013,66345.0,66337.0,0.15628794]
[1727447560318,0.013,66345.0,66344.0,0.150729]
[1727447560582,0.15528794,66359.0,66347.0,0.150721]
[1727447560847,0.023,66350.0,66347.0,0.150721]
[1727447561098,0.023,66350.0,66343.0,0.150731]
[1727447561334,0.012,66352.0,66341.0,0.30147]
[1727447561335,0.023,66351.0,66350.0,0.150715]
[1727447561820,0.012,66352.0,66351.0,0.150713]
[1727447562312,0.001,66352.0,66351.0,0.30901439]
[1727447562541,0.001,66352.0,66351.0,0.40600094]
[1727447563331,0.001,66352.0,66351.0,0.250713]
[1727447563572,0.002,66352.0,66351.0,0.159713]
[1727447563801,0.003656,66352.0,66351.0,0.159713]
[1727447564285,0.002656,66352.0,66351.0,0.150713]
[1727447565003,0.002656,66352.0,66351.0,0.30600094]
[1727447565520,0.002656,66352.0,66351.0,0.150713]
[1727447565989,0.003656,66352.0,66351.0,0.161713]
[1727447568693,0.003656,66352.0,66351.0,0.41700094]
[1727447569229,0.22826008,66367.0,66366.0,0.150679]
[1727447569688,0.001662,66367.0,66366.0,0.150679]
[1727447570167,0.001662,66367.0,66366.0,0.40898012]
[1727447570400,0.001662,66367.0,66366.0,0.40596694]
[1727447570593,0.004662,66367.0,66366.0,0.40596694]
[1727447572077,0.001662,66367.0,66366.0,0.40596694]
[1727447572319,0.001662,66367.0,66366.0,0.250679]
[1727447572554,0.001662,66367.0,66366.0,0.258679]
[1727447572798,0.024662,66367.0,66366.0,0.158679]
[1727447573038,0.024662,66367.0,66366.0,0.150679]
[1727447573265,0.024662,66367.0,66366.0,0.160679]
[1727447573752,0.024662,66367.0,66366.0,0.150679]
[1727447573981,0.024662,66367.0,66366.0,0.160679]
[1727447574477,0.024662,66367.0,66349.0,0.005]
[1727447574478,0.075,66363.0,66326.0,0.002]
[1727447574710,0.075,66363.0,66318.0,0.22659808]
[1727447574711,0.173713,66351.0,66350.0,0.22659808]
[1727447574950,0.301406,66356.0,66343.0,0.52805708]
[1727447574951,0.023,66355.0,66343.0,0.22659808]
[1727447575179,0.023,66350.0,66335.0,0.301497]
[1727447575437,0.023,66350.0,66325.0,0.22659808]
[1727447575438,0.023,66348.0,66325.0,0.22659808]
[1727447575694,0.023,66344.0,66329.0,0.301524]
[1727447575925,0.023,66346.0,66325.0,0.22659808]
[1727447576169,0.173729,66344.0,66331.0,0.150757]
[1727447576404,0.24959808,66344.0,66330.0,0.301519]
[1727447576646,0.103,66339.0,66328.0,0.150764]
[1727447576872,0.15528794,66338.0,66320.0,0.301566]
[1727447577124,0.15528794,66338.0,66308.0,0.01]
[1727447577125,0.173754,66333.0,66316.0,0.301583]
[1727447577420,0.023,66333.0,66332.0,0.001828]
[1727447577652,0.15528794,66338.0,66332.0,0.001828]
[1727447577653,0.023,66337.0,66332.0,0.001828]
[1727447577879,0.023,66335.0,66332.0,0.001828]
[1727447578112,0.15528794,66336.0,66332.0,0.001828]
[1727447578113,0.173754,66333.0,66332.0,0.001828]
[1727447578349,0.023,66333.0,66316.0,0.301583]
[1727447578608,0.150722,66348.0,66335.0,0.301497]
[1727447578821,0.22659808,66335.0,66323.0,0.301552]
[1727447579056,0.22659808,66342.0,66331.0,0.150758]
[1727447579291,0.22659808,66335.0,66332.0,0.001]
[1727447579568,0.006,66339.0,66332.0,0.151755]
[1727447579801,0.22659808,66342.0,66333.0,0.150752]
[1727447580032,0.22659808,66342.0,66331.0,0.301514]
[1727447580033,0.023,66341.0,66331.0,0.301514]
[1727447580269,0.023,66334.0,66330.0,0.301519]
[1727447580528,0.023,66334.0,66333.0,0.150754]
[1727447581024,0.023,66338.0,66332.0,0.001]
[1727447581250,0.023,66338.0,66333.0,0.150754]
[1727447581251,0.023,66336.0,66333.0,0.150754]
[1727447581491,0.014,66339.0,66332.0,0.001]
[1727447581752,0.037,66339.0,66338.0,0.150743]
[1727447582038,0.014,66339.0,66338.0,0.150743]
[1727447582276,0.0775,66351.0,66338.0,0.301485]
[1727447582515,0.023,66343.0,66342.0,0.150734]
[1727447582738,0.023,66343.0,66338.0,0.15074]
[1727447582961,0.023,66348.0,66340.0,0.150737]
[1727447583185,0.22659808,66347.0,66336.0,0.301491]
[1727447583433,0.033,66339.0,66338.0,0.452226]
[1727447583677,0.033,66339.0,66338.0,0.150743]
[1727447583903,0.023,66339.0,66338.0,0.150743]
[1727447584603,0.014,66348.0,66347.0,0.150722]
[1727447586106,0.22659808,66361.0,66360.0,0.150693]
[1727447586580,0.001662,66367.0,66339.0,0.26028794]
[1727447586581,0.001662,66367.0,66357.0,0.301398]
[1727447586817,0.001662,66367.0,66347.0,0.002]
[1727447586818,0.22659808,66366.0,66365.0,0.150681]
[1727447587297,0.001662,66367.0,66366.0,0.150679]
[1727447588733,0.024662,66367.0,66366.0,0.150679]
[1727447589442,0.024662,66367.0,66366.0,0.15023226]
[1727447589916,0.031662,66367.0,66366.0,0.15123226]
[1727447590674,0.024662,66367.0,66366.0,0.15023226]
[1727447590909,0.023,66366.0,66360.0,0.301382]
[1727447591177,0.023,66366.0,66347.0,0.22659808]
[1727447591178,0.15528794,66365.0,66347.0,0.22659808]
[1727447591423,0.023,66362.0,66357.0,0.301399]
[1727447591662,0.173688,66362.0,66358.0,0.150696]
[1727447591892,0.023,66362.0,66358.0,0.150696]
[1727447592126,0.023,66360.0,66350.0,0.301431]
[1727447592361,0.023,66360.0,66351.0,0.301422]
[1727447592589,0.023,66358.0,66354.0,0.150706]
[1727447592829,0.023,66358.0,66357.0,0.1507]
[1727447593064,0.023,66361.0,66354.0,0.00301405]
[1727447593300,0.023,66361.0,66360.0,0.150693]
[1727447593530,0.22659808,66365.0,66356.0,0.301404]
[1727447593531,0.001662,66367.0,66366.0,0.150679]
[1727447596190,0.004662,66367.0,66366.0,0.150679]
[1727447596680,0.001662,66367.0,66366.0,0.150679]
[1727447596923,0.001662,66367.0,66366.0,0.154679]
[1727447597414,0.65536998,66367.0,66366.0,0.004]
[1727447597655,0.80604698,66367.0,66366.0,0.004]
[1727447597929,0.81140332,66367.0,66366.0,0.004]
[1727447598624,0.40742694,66367.0,66366.0,0.004]
[1727447598872,0.40742694,66367.0,66348.0,0.22659808]
[1727447598873,0.15069,66362.0,66353.0,0.452125]
[1727447599114,0.173691,66361.0,66356.0,0.150702]
[1727447599352,0.173691,66361.0,66348.0,0.22659808]
[1727447599353,0.023,66361.0,66360.0,0.150693]
[1727447599593,0.078462,66367.0,66349.0,0.00301405]
[1727447599594,0.023,66366.0,66349.0,0.00301405]
[1727447599824,0.30506008,66367.0,66352.0,0.452133]
[1727447599825,0.023,66353.0,66352.0,0.452133]
[1727447600291,0.301372,66363.0,66353.0,0.301414]
[1727447600292,0.023,66360.0,66353.0,0.301414]
[1727447600542,0.053,66354.0,66353.0,0.301414]
[1727447600798,0.023,66353.0,66352.0,0.150711]
[1727447601324,0.023,66353.0,66350.0,0.150714]
[1727447601804,0.023,66353.0,66352.0,0.150711]
[1727447602494,0.023,66353.0,66351.0,0.150711]
[1727447602745,0.023,66353.0,66352.0,0.150711]
[1727447603022,0.023,66353.0,66350.0,0.150715]
[1727447603261,0.03,66353.0,66352.0,0.001]
[1727447603958,0.023,66353.0,66349.0,0.301432]
[1727447604195,0.023,66353.0,66352.0,0.150711]
[1727447604428,0.023,66353.0,66350.0,0.150714]
[1727447604666,0.023,66353.0,66352.0,0.150711]
[1727447604913,0.023,66353.0,66347.0,0.301442]
[1727447605400,0.023,66353.0,66352.0,0.150711]
[1727447605401,0.03,66353.0,66352.0,0.150711]
[1727447605886,0.023,66353.0,66352.0,0.150711]
[1727447606131,0.03,66353.0,66352.0,0.151711]
[1727447606623,0.007,66353.0,66352.0,0.151711]
[1727447606863,0.031,66354.0,66353.0,0.150709]
[1727447608792,0.03081865,66354.0,66353.0,0.150709]
[1727447609024,0.03081865,66354.0,66353.0,0.25372261]
[1727447610311,0.03081865,66354.0,66353.0,0.41101053]
[1727447610400,0.03081865,66354.0,66353.0,0.41399694]
[1727447610401,0.03181865,66354.0,66353.0,0.41399694]
[1727447610847,0.002,66354.0,66353.0,0.41399694]
[1727447611767,0.002,66354.0,66353.0,0.40799694]
[1727447611993,0.001,66354.0,66353.0,0.40599694]
[1727447612452,0.001,66354.0,66353.0,0.41899694]
[1727447612453,0.002,66354.0,66353.0,0.41899694]
[1727447612689,0.002,66354.0,66353.0,0.42899694]
[1727447612922,0.001,66354.0,66353.0,0.41882494]
[1727447613154,0.001,66354.0,66353.0,0.42382494]
[1727447613395,0.002,66354.0,66353.0,0.42482494]
[1727447613626,0.002,66354.0,66353.0,0.42982494]
[1727447613852,0.001,66354.0,66353.0,0.42382494]
[1727447614580,0.22826008,66367.0,66364.0,0.015]
[1727447614811,0.22826008,66367.0,66366.0,0.255679]
[1727447615050,0.001662,66367.0,66366.0,0.41598001]
[1727447615314,0.001662,66367.0,66366.0,0.42296694]
[1727447615315,1e-06,66367.0,66366.0,0.42296694]
[1727447615554,1e-06,66367.0,66366.0,0.50226694]
[1727447615806,1e-06,66367.0,66366.0,0.76142349]
[1727447616322,0.001001,66367.0,66366.0,0.77687502]
[1727447616577,0.001001,66367.0,66366.0,0.51271847]
[1727447616828,0.001001,66367.0,66366.0,0.50771847]
[1727447616829,1e-06,66367.0,66366.0,0.50771847]
[1727447617333,0.001001,66367.0,66366.0,0.51626694]
[1727447617575,0.001001,66367.0,66366.0,0.77542349]
[1727447618032,0.001001,66367.0,66366.0,0.76542349]
[1727447618516,0.001001,66367.0,66366.0,0.164679]
[1727447618752,0.001001,66367.0,66366.0,0.31996694]
[1727447619221,0.001001,66367.0,66366.0,0.32496694]
[1727447619458,0.001001,66367.0,66366.0,0.59612349]
[1727447619708,0.001001,66367.0,66366.0,0.60169944]
[1727447619950,0.001001,66367.0,66366.0,0.70169944]
[1727447620195,1e-06,66367.0,66366.0,1.19332644]
[1727447620486,1e-06,66367.0,66366.0,1.01386989]
[1727447620714,1e-06,66367.0,66366.0,1.04778344]
[1727447621210,1e-06,66367.0,66366.0,1.23278344]
[1727447621453,0.13612408,66381.0,66380.0,0.267647]
[1727447621704,0.13612408,66381.0,66380.0,0.68209149]
[1727447621934,0.22659808,66388.0,66387.0,0.250631]
[1727447622172,0.22659808,66388.0,66387.0,0.40791894]
[1727447622409,0.001658,66404.0,66394.0,0.250616]
[1727447622645,0.001658,66404.0,66394.0,0.40790394]
[1727447622883,0.001658,66404.0,66398.0,0.250606]
[1727447623143,0.001658,66404.0,66398.0,0.25361769]
[1727447623624,0.001658,66404.0,66398.0,0.250606]
[1727447625305,0.001658,66404.0,66398.0,0.252606]
[1727447625799,0.001658,66404.0,66398.0,0.251606]
[1727447626033,0.001658,66404.0,66398.0,0.250606]
[1727447626785,0.001658,66404.0,66398.0,0.252606]
[1727447628513,0.001658,66404.0,66398.0,0.252506]
[1727447633392,0.02466,66399.0,66398.0,0.252506]
[1727447636241,0.00166,66399.0,66398.0,0.25551763]
[1727447636473,0.00166,66399.0,66398.0,0.51467418]
[1727447636709,0.00166,66399.0,66398.0,0.51166255]
[1727447636946,0.00166,66399.0,66398.0,0.51366255]
[1727447637171,0.00166,66399.0,66398.0,0.51166255]
[1727447637917,0.00166,66399.0,66398.0,0.51366255]
[1727447638827,0.00206,66399.0,66398.0,0.51366255]
[1727447639851,0.00206,66399.0,66398.0,0.51166255]
[1727447640828,0.00206,66399.0,66398.0,0.67195049]
[1727447641080,0.001658,66404.0,66403.0,0.51175155]
[1727447641318,0.001658,66404.0,66403.0,0.66503949]
[1727447641792,0.000829,66410.0,66406.0,0.005]
[1727447642029,0.000829,66410.0,66404.0,0.1]
[1727447642030,0.000829,66410.0,66409.0,0.257581]
[1727447642294,1e-06,66410.0,66409.0,0.41587984]
[1727447642538,0.22659808,66417.0,66416.0,0.556697]
[1727447642784,0.22659808,66417.0,66416.0,0.72198494]
[1727447643026,0.000829,66418.0,66417.0,0.255563]
[1727447643255,0.000829,66418.0,66417.0,0.42285094]
[1727447643961,0.001656,66419.0,66418.0,0.267561]
[1727447644200,0.001656,66419.0,66418.0,0.4243778]
[1727447644432,0.001656,66419.0,66418.0,0.47284894]
[1727447645397,0.024656,66419.0,66418.0,0.47284894]
[1727447645658,0.024656,66419.0,66418.0,0.42284894]
[1727447646179,0.01570556,66425.0,66424.0,0.005]
[1727447646471,0.22825208,66432.0,66431.0,0.255532]
[1727447646708,0.22825208,66432.0,66431.0,0.69431994]
[1727447646709,0.001654,66432.0,66431.0,0.69431994]
[1727447646941,0.001654,66432.0,66431.0,0.95347649]
[1727447648656,0.001654,66432.0,66431.0,0.96747649]
[1727447649123,0.22659808,66464.0,66433.0,0.067]
[1727447649358,0.22659808,66441.0,66433.0,0.42382439]
[1727447649594,0.22659808,66441.0,66433.0,0.42081494]
[1727447650069,0.22659808,66441.0,66433.0,0.42281494]
[1727447650326,0.22659808,66464.0,66433.0,0.42281494]
[1727447650551,0.22659808,66440.0,66433.0,0.41781494]
[1727447650779,0.22659808,66440.0,66433.0,0.42281494]
[1727447651454,0.001654,66448.0,66444.0,0.255502]
[1727447651680,0.001654,66448.0,66444.0,0.41278994]
[1727447651917,0.001654,66448.0,66444.0,0.42278994]
[1727447652430,0.001654,66448.0,66444.0,0.47278994]
[1727447652890,0.001654,66448.0,66444.0,0.73894649]
[1727447653349,8.1e-07,66445.0,66444.0,0.73894649]
[1727447653578,8.1e-07,66445.0,66444.0,0.78504668]
[1727447653807,8.1e-07,66445.0,66444.0,0.86674668]
[1727447654036,8.1e-07,66445.0,66444.0,1.05094668]
[1727447654493,8.1e-07,66445.0,66444.0,1.00484649]
[1727447654727,8.1e-07,66445.0,66444.0,0.99784649]
[1727447654962,0.001654,66448.0,66447.0,0.267495]
[1727447655232,0.00025245,66457.0,66456.0,0.255475]
[1727447655483,0.00025245,66457.0,66456.0,0.68492827]
[1727447655729,0.00025245,66457.0,66456.0,0.68191949]
[1727447656203,0.106661,66467.0,66466.0,0.14254339]
[1727447656525,0.083661,66467.0,66466.0,0.29783133]
[1727447657716,0.083661,66467.0,66466.0,0.14254339]
[1727447658174,0.106661,66467.0,66466.0,0.14254339]
[1727447658409,0.106661,66467.0,66466.0,0.14654339]
[1727447658910,0.106661,66467.0,66466.0,0.14254339]
[1727447659172,0.106661,66467.0,66466.0,0.30183133]
[1727447659896,0.106661,66467.0,66466.0,0.14654339]
[1727447661141,0.083661,66467.0,66466.0,0.29783133]
[1727447661411,0.05118244,66467.0,66466.0,0.41683133]
[1727447661656,0.05118244,66467.0,66466.0,1.41624152]
[1727447661942,0.05118244,66467.0,66466.0,1.17666952]
[1727447662148,0.05118244,66467.0,66466.0,0.46093152]
[1727447662371,0.05118244,66467.0,66466.0,0.72808807]
[1727447662640,0.05118244,66467.0,66466.0,0.67998788]
[1727447662887,0.05118244,66467.0,66466.0,0.71808807]
[1727447662888,4.4e-07,66467.0,66466.0,0.71808807]
[1727447663136,9.3e-07,66471.0,66470.0,0.267443]
[1727447663382,0.22535543,66477.0,66471.0,0.1]
[1727447663621,0.22535543,66477.0,66476.0,0.41271794]
[1727447664141,0.22535543,66477.0,66476.0,0.72179616]
[1727447664640,9.252e-05,66497.0,66485.0,0.017]
[1727447664879,9.252e-05,66497.0,66485.0,1.24993494]
[1727447664880,1e-06,66486.0,66485.0,1.24993494]
[1727447665107,1e-06,66486.0,66485.0,0.68567061]
[1727447665346,1e-06,66486.0,66485.0,0.78436794]
[1727447665603,1e-06,66486.0,66485.0,0.78404461]
[1727447665851,1e-06,66486.0,66485.0,0.63541394]
[1727447666098,1e-06,66486.0,66485.0,0.68185349]
[1727447666340,1e-06,66486.0,66485.0,0.69585349]
[1727447666823,9.252e-05,66497.0,66493.0,0.257391]
[1727447667066,9.252e-05,66497.0,66493.0,0.95068294]
[1727447667318,0.49957827,66500.0,66499.0,0.157378]
[1727447667572,0.49957827,66500.0,66499.0,0.41266594]
[1727447667818,9e-07,66507.0,66506.0,0.51451855]
[1727447668055,9e-07,66507.0,66506.0,0.67180649]
[1727447668295,9e-07,66507.0,66506.0,0.71447208]
[1727447668537,9e-07,66507.0,66506.0,0.94307016]
[1727447668765,0.000827,66512.0,66509.0,0.255355]
[1727447668766,0.00159712,66510.0,66509.0,0.255355]
[1727447668997,0.00159712,66510.0,66509.0,0.41064294]
[1727447669469,0.00159712,66510.0,66509.0,0.46030853]
[1727447670155,0.00159712,66510.0,66509.0,0.41064294]
[1727447670403,0.00159712,66510.0,66509.0,0.40664294]
[1727447670644,0.02741882,66510.0,66509.0,0.40664294]
[1727447670872,0.02459712,66510.0,66509.0,0.30664294]
[1727447671113,0.02459712,66510.0,66509.0,0.151355]
[1727447671342,0.02459712,66510.0,66509.0,0.37795308]
[1727447671671,0.02459712,66510.0,66509.0,0.151355]
[1727447671772,0.02459712,66510.0,66509.0,0.37795308]
[1727447672010,0.10479712,66510.0,66509.0,0.37795308]
[1727447672259,0.10479712,66510.0,66509.0,0.151355]
[1727447672741,0.10783704,66510.0,66509.0,0.151355]
[1727447673476,0.10783704,66510.0,66509.0,0.37795308]
[1727447673712,0.10783704,66510.0,66509.0,0.151355]
[1727447673948,0.10483712,66510.0,66509.0,0.151355]
[1727447674187,0.10787704,66510.0,66509.0,0.151355]
[1727447674677,0.10787704,66510.0,66509.0,0.001]
[1727447674923,0.10787704,66510.0,66509.0,0.151355]
[1727447675415,0.10787704,66510.0,66509.0,0.001]
[1727447675658,0.10787704,66510.0,66490.0,0.300794]
[1727447675659,0.1827,66507.0,66490.0,0.300794]
[1727447675899,0.41912153,66510.0,66501.0,0.22659808]
[1727447675900,0.0798,66505.0,66501.0,0.22659808]
[1727447676148,0.0798,66505.0,66490.0,0.300794]
[1727447676149,0.023,66502.0,66490.0,0.300794]
[1727447676393,0.1028,66499.0,66498.0,0.150379]
[1727447676630,0.1028,66499.0,66488.0,0.300804]
[1727447676631,0.023,66498.0,66494.0,0.150387]
[1727447676864,0.17828794,66498.0,66490.0,0.150397]
[1727447677097,0.023,66494.0,66485.0,0.300815]
[1727447677352,0.023,66492.0,66485.0,0.300815]
[1727447677590,0.023,66492.0,66473.0,0.300869]
[1727447677826,0.023,66490.0,66472.0,0.22659808]
[1727447678065,0.15528794,66489.0,66481.0,0.22659808]
[1727447678297,0.023,66490.0,66481.0,0.22659808]
[1727447678539,0.023,66490.0,66487.0,0.150404]
[1727447678540,0.15528794,66490.0,66487.0,0.150404]
[1727447678794,0.008,66492.0,66489.0,0.150398]
[1727447679043,0.008,66492.0,66491.0,0.150396]
[1727447679519,0.008,66492.0,66490.0,0.150397]
[1727447679740,0.008,66492.0,66489.0,0.300801]
[1727447679985,0.023,66492.0,66491.0,0.150396]
[1727447680468,0.023,66492.0,66488.0,0.300803]
[1727447680469,0.023,66494.0,66490.0,0.22659808]
[1727447680715,0.023,66494.0,66493.0,0.150391]
[1727447680949,0.023,66492.0,66491.0,0.150394]
[1727447681192,0.023,66492.0,66489.0,0.3008]
[1727447681193,0.023,66493.0,66489.0,0.150399]
[1727447681435,0.023,66489.0,66481.0,0.22759808]
[1727447684314,0.023,66482.0,66473.0,0.300873]
[1727447684563,0.023,66478.0,66472.0,0.150437]
[1727447684787,0.2145,66478.0,66474.0,0.22659808]
[1727447685060,0.150436,66474.0,66466.0,0.152106]
[1727447685280,0.023,66471.0,66466.0,0.22825208]
[1727447685495,0.43260655,66467.0,66466.0,0.22825208]
[1727447685714,0.58789449,66467.0,66466.0,0.22825208]
[1727447685945,0.58789449,66467.0,66466.0,0.001654]
[1727447685946,0.43744449,66467.0,66466.0,0.001654]
[1727447687225,0.150442,66471.0,66470.0,0.150443]
[1727447687226,0.023,66471.0,66470.0,0.150443]
[1727447687487,0.023,66472.0,66468.0,0.300896]
[1727447687975,0.023,66476.0,66471.0,0.300881]
[1727447688245,0.023,66476.0,66466.0,0.002654]
[1727447688246,0.17828794,66476.0,66475.0,0.150432]
[1727447688483,0.023,66478.0,66477.0,0.136427]
[1727447688942,0.01055912,66491.0,66471.0,0.52747708]
[1727447688943,0.0798,66490.0,66471.0,0.22659808]
[1727447689178,0.0798,66490.0,66482.0,0.150416]
[1727447689179,0.22659808,66488.0,66482.0,0.150416]
[1727447689408,0.0798,66490.0,66480.0,0.300841]
[1727447689409,0.41444449,66487.0,66480.0,0.300841]
[1727447689661,0.41444449,66487.0,66473.0,0.300873]
[1727447689939,0.41444449,66487.0,66483.0,0.150412]
[1727447690171,0.41444449,66487.0,66478.0,0.30085]
[1727447690400,0.41444449,66487.0,66479.0,0.22659808]
[1727447690401,0.023,66486.0,66479.0,0.22659808]
[1727447690628,0.03,66482.0,66474.0,0.300867]
[1727447690950,0.023,66481.0,66478.0,0.150424]
[1727447691166,0.023,66479.0,66473.0,0.300871]
[1727447691427,0.023,66479.0,66461.0,0.300927]
[1727447691428,0.023,66479.0,66478.0,0.150425]
[1727447691676,0.023,66479.0,66477.0,0.52745308]
[1727447691677,0.023,66481.0,66480.0,0.150421]
[1727447694124,0.03,66482.0,66481.0,0.150418]
[1727447695418,0.053,66482.0,66481.0,0.150418]
[1727447696920,0.35870494,66482.0,66478.0,0.150425]
[1727447697161,0.35870494,66482.0,66472.0,0.300877]
[1727447697162,0.023,66479.0,66472.0,0.300877]
[1727447697405,0.023,66477.0,66473.0,0.52746808]
[1727447697635,0.023,66475.0,66474.0,0.451302]
[1727447698106,0.023,66478.0,66472.0,0.150437]
[1727447698368,0.023,66476.0,66474.0,0.150434]
[1727447698618,0.17828794,66476.0,66475.0,0.150432]
[1727447698883,0.17828794,66476.0,66473.0,0.300871]
[1727447698884,0.17828794,66476.0,66473.0,0.150436]
[1727447699121,0.17828794,66476.0,66475.0,0.150432]
[1727447699377,0.17828794,66476.0,66465.0,0.150454]
[1727447699378,0.150447,66469.0,66465.0,0.150454]
[1727447699600,0.150447,66469.0,66465.0,0.150453]
[1727447699601,0.023,66468.0,66465.0,0.150453]
[1727447699843,0.023,66468.0,66462.0,0.22659808]
[1727447700343,0.023,66468.0,66461.0,0.300928]
[1727447700344,0.023,66468.0,66463.0,0.150458]
[1727447700651,0.023,66468.0,66463.0,0.300915]
[1727447700931,0.023,66468.0,66466.0,0.303559]
[1727447701211,0.002,66486.0,66466.0,0.303559]
[1727447701212,0.1976,66480.0,66466.0,0.002654]
[1727447701455,0.22659808,66479.0,66466.0,0.00564546]
[1727447701696,0.22659808,66479.0,66478.0,0.150425]
[1727447701945,0.0809,66485.0,66481.0,0.150418]
[1727447702407,0.04571448,66482.0,66466.0,0.00565669]
[1727447702636,0.03,66482.0,66477.0,0.300854]
[1727447702851,0.03,66482.0,66472.0,0.300874]
[1727447702852,0.15528794,66481.0,66472.0,0.300874]
[1727447703296,0.45612594,66481.0,66471.0,0.30088]
[1727447703556,0.014,66476.0,66475.0,0.150431]
[1727447703764,0.037,66476.0,66475.0,0.150431]
[1727447703993,0.023,66480.0,66468.0,0.300895]
[1727447704216,0.17828794,66479.0,66478.0,0.150425]
[1727447704445,0.023,66479.0,66478.0,0.150425]
[1727447704665,0.023,66480.0,66479.0,0.451269]
[1727447704898,0.03,66482.0,66475.0,0.30086]
[1727447704899,0.023,66481.0,66475.0,0.30086]
[1727447705118,0.17843,66476.0,66475.0,0.001]
[1727447705379,0.34938641,66476.0,66475.0,0.001]
[1727447705598,0.45811296,66476.0,66475.0,0.001]
[1727447705818,0.04366847,66476.0,66475.0,0.001]
[1727447706043,0.15997903,66476.0,66475.0,0.001]
[1727447706269,0.150436,66474.0,66469.0,0.22659808]
[1727447706489,0.150436,66474.0,66471.0,0.15044]
[1727447706490,0.15528794,66474.0,66471.0,0.15044]
[1727447706709,0.15528794,66474.0,66471.0,0.300881]
[1727447706929,0.15528794,66474.0,66463.0,0.300918]
[1727447706930,0.15528794,66474.0,66470.0,0.300885]
[1727447707155,0.15528794,66474.0,66473.0,0.150437]
[1727447707405,0.15528794,66474.0,66470.0,0.150442]
[1727447707406,0.30572394,66474.0,66470.0,0.150442]
[1727447707638,0.30572394,66474.0,66464.0,0.300913]
[1727447707639,0.15728794,66474.0,66464.0,0.300913]
[1727447707874,0.15728794,66474.0,66468.0,0.52749208]
[1727447708104,0.023,66473.0,66472.0,0.150439]
[1727447708568,0.22663808,66481.0,66472.0,0.22659808]
[1727447708569,4e-05,66481.0,66472.0,0.22659808]
[1727447708816,4e-05,66481.0,66480.0,0.150421]
[1727447710491,0.00704,66481.0,66480.0,0.151421]
[1727447711877,0.00704,66481.0,66480.0,0.15442889]
[1727447712111,0.00704,66481.0,66480.0,0.71391523]
[1727447712397,0.00704,66481.0,66480.0,0.79550734]
[1727447712643,4e-05,66481.0,66480.0,0.48830894]
[1727447712911,0.01004,66481.0,66480.0,0.48930894]
[1727447713368,4e-05,66481.0,66480.0,0.48830894]
[1727447713592,0.00104,66481.0,66480.0,0.50230894]
[1727447714093,0.00104,66481.0,66480.0,0.50430894]
[1727447714329,0.00104,66481.0,66480.0,0.51930894]
[1727447714574,1e-06,66481.0,66480.0,0.66710894]
[1727447714818,0.000829,66482.0,66481.0,0.267418]
[1727447714819,1e-06,66482.0,66481.0,0.267418]
[1727447715071,1e-06,66482.0,66481.0,0.250418]
[1727447715535,1e-06,66482.0,66481.0,0.25342589]
[1727447715770,1e-06,66482.0,66481.0,0.250418]
[1727447716224,0.001001,66482.0,66481.0,0.264418]
[1727447716468,0.001001,66482.0,66481.0,0.26742589]
[1727447716919,0.001001,66482.0,66481.0,0.41970594]
[1727447717144,0.001001,66482.0,66481.0,0.42170594]
[1727447717368,0.001001,66482.0,66481.0,0.41970594]
[1727447717666,0.001001,66482.0,66481.0,0.42170594]
[1727447717897,0.000829,66495.0,66494.0,0.150389]
[1727447718130,0.000829,66495.0,66494.0,0.250389]
[1727447718351,0.000829,66495.0,66494.0,0.40567694]
[1727447718567,0.000829,66495.0,66494.0,0.40767694]
[1727447719448,0.000829,66495.0,66494.0,0.63427502]
[1727447719648,0.000829,66495.0,66494.0,0.41267694]
[1727447720015,0.02641312,66510.0,66509.0,0.150355]
[1727447725858,0.04941312,66510.0,66509.0,0.150355]
[1727447727464,0.02641312,66510.0,66509.0,0.150355]
[1727447728677,0.02641312,66510.0,66509.0,0.15250283]
[1727447728907,0.02641312,66510.0,66509.0,0.48839077]
[1727447729154,0.02641312,66510.0,66509.0,0.48624294]
[1727447730609,0.02641312,66510.0,66509.0,0.49124294]
[1727447730847,0.02641312,66510.0,66509.0,0.48624294]
[1727447731549,0.02641312,66510.0,66509.0,0.40564294]
[1727447734371,0.000827,66512.0,66511.0,0.267351]
[1727447734607,0.000827,66512.0,66511.0,0.42063894]
[1727447735091,0.000827,66512.0,66511.0,0.68940294]
[1727447735329,0.000827,66512.0,66511.0,0.95560294]
[1727447735566,0.500447,66513.0,66512.0,0.265348]
[1727447735801,0.500447,66513.0,66512.0,1.62207494]
[1727447735802,0.470352,66513.0,66512.0,1.62207494]
[1727447736040,0.470352,66513.0,66512.0,1.24405849]
[1727447737001,0.470352,66513.0,66512.0,1.19138249]
[1727447737718,0.470352,66513.0,66512.0,1.18938249]
[1727447737921,0.470352,66513.0,66512.0,0.92778949]